fUSD/lending_fUSD_20260408
["ID","MTS","AMOUNT","RATE_DAILY","PERIOD"]
[420101650,1775676671171,-1352.133494,0.000155,2]
[420101651,1775676671182,-151.0,0.000155,2]
[420101652,1775676671191,-1352.133494,0.000155,2]
[420101653,1775676671201,-151.0,0.000155,2]
[420101654,1775676671211,-1352.133494,0.000155,2]
[420101655,1775676671222,-1352.133494,0.000155,2]
[420101656,1775676671232,-151.0,0.000155,2]
[420101657,1775676671242,-151.0,0.000155,2]
[420101658,1775676671252,-151.0,0.000155,2]
[420101659,1775676671264,-1000.0,0.00015506,2]
[420101660,1775676671274,-4000.0,0.00015507,2]
[420101661,1775676671285,-1000.0,0.00015518,2]
[420101662,1775676671294,-150.0,0.00015534,2]
[420101663,1775676671305,-200.0,0.00015547,2]
[420101664,1775676671314,-1000.0,0.00015574,2]
[420101665,1775676671323,-1153.7222365,0.00015578,2]
[420101666,1775676671334,-1000.0,0.00015579,2]
[420101667,1775676671344,-1816.0,0.0001558,2]
[420101668,1775676671355,-10500.0,0.000156,5]
[420101669,1775676671364,-18461.29189227,0.0001561,2]
[420101670,1775676671375,-150.0,0.00015615,2]
[420101671,1775676671384,-350.0,0.0001562,2]
[420101672,1775676671395,-150.0,0.00015642,2]
[420101673,1775676671405,-350.0,0.00015654,4]
[420101674,1775676671415,-150.0,0.00015655,2]
[420101675,1775676671426,-150.0,0.00015655,2]
[420101676,1775676671436,-1000.0,0.00015663,2]
[420101677,1775676671446,-3727.97775672,0.0001568,2]
[420101678,1775676671456,-1573.0,0.0001568,2]
[420101679,1775676671466,-1068.5,0.00015683,2]
[420101680,1775676671475,-151.0,0.00015685,2]
[420101681,1775676671485,-150.0,0.00015688,2]
[420101682,1775676671495,-150.0,0.00015688,2]
[420101683,1775676671504,-150.0,0.00015688,2]
[420101684,1775676671513,-151.0,0.000157,2]
[420101685,1775676671524,-382.684518,0.000157,2]
[420101686,1775676671534,-382.684518,0.000157,2]
[420101687,1775676671543,-252.791544,0.000157,2]
[420101688,1775676671553,-382.684518,0.000157,2]
[420101689,1775676671563,-252.791544,0.000157,2]
[420101690,1775676671573,-151.0,0.000157,2]
[420101691,1775676671583,-382.684521,0.000157,2]
[420101692,1775676671594,-252.791544,0.000157,2]
[420101693,1775676671603,-892.21053,0.000157,2]
[420101694,1775676671613,-252.791553,0.000157,2]
[420101695,1775676671623,-892.21053,0.000157,2]
[420101696,1775676671633,-892.21053,0.000157,2]
[420101697,1775676671643,-892.210534,0.000157,2]
[420101698,1775676671653,-264.356208,0.000157,2]
[420101699,1775676671663,-264.356208,0.000157,2]
[420101700,1775676671674,-264.356208,0.000157,2]
[420101701,1775676671684,-264.356202,0.000157,2]
[420101702,1775676671696,-195.251014,0.000157,2]
[420101703,1775676671707,-195.251014,0.000157,2]
[420101704,1775676671717,-195.251014,0.000157,2]
[420101705,1775676671728,-195.251021,0.000157,2]
[420101706,1775676671738,-1104.329926,0.000157,2]
[420101707,1775676671748,-1104.329926,0.000157,2]
[420101708,1775676671758,-1104.329926,0.000157,2]
[420101709,1775676671883,-151.0,0.000157,2]
[420101710,1775676671893,-1104.329935,0.000157,2]
[420101711,1775676671903,-151.0,0.000157,2]
[420101712,1775676671912,-783.271789,0.000157,2]
[420101713,1775676671923,-317.449149,0.000157,2]
[420101714,1775676671933,-783.271789,0.000157,2]
[420101715,1775676671943,-317.449149,0.000157,2]
[420101716,1775676671953,-783.271789,0.000157,2]
[420101717,1775676671963,-317.449149,0.000157,2]
[420101718,1775676671972,-783.271795,0.000157,2]
[420101719,1775676671981,-317.449142,0.000157,2]
[420101720,1775676671992,-151.0,0.000157,2]
[420101721,1775676672001,-151.0,0.000157,2]
[420101722,1775676672011,-386.728794,0.000157,2]
[420101723,1775676672021,-151.0,0.000157,2]
[420101724,1775676672031,-386.728794,0.000157,2]
[420101725,1775676672041,-386.728794,0.000157,2]
[420101726,1775676672050,-386.728789,0.000157,2]
[420101727,1775676672060,-157.215334,0.000157,2]
[420101728,1775676672069,-157.215334,0.000157,2]
[420101729,1775676672078,-157.215334,0.000157,2]
[420101730,1775676672088,-157.215343,0.000157,2]
[420101731,1775676672097,-183.879532,0.000157,2]
[420101732,1775676672106,-183.879532,0.000157,2]
[420101733,1775676672115,-183.879532,0.000157,2]
[420101734,1775676672125,-183.879539,0.000157,2]
[420101735,1775676672135,-151.0,0.000157,2]
[420101736,1775676672144,-281.814743,0.000157,2]
[420101737,1775676672153,-281.814743,0.000157,2]
[420101738,1775676672163,-151.0,0.000157,2]
[420101739,1775676672173,-151.0,0.000157,2]
[420101740,1775676672184,-151.0,0.000157,2]
[420101741,1775676672193,-281.814743,0.000157,2]
[420101742,1775676672203,-151.0,0.000157,2]
[420101743,1775676672213,-151.0,0.000157,2]
[420101744,1775676672222,-281.814749,0.000157,2]
[420101745,1775676672233,-151.0,0.000157,2]
[420101746,1775676672242,-151.0,0.000157,2]
[420101747,1775676672252,-194.291162,0.000157,2]
[420101748,1775676672261,-151.0,0.000157,2]
[420101749,1775676672271,-151.0,0.000157,2]
[420101750,1775676672281,-151.0,0.000157,2]
[420101751,1775676672291,-151.0,0.000157,2]
[420101752,1775676672301,-151.0,0.000157,2]
[420101753,1775676672311,-151.0,0.000157,2]
[420101754,1775676672321,-185.081385,0.000157,2]
[420101755,1775676672330,-151.0,0.000157,2]
[420101756,1775676672340,-320.89115,0.000157,2]
[420101757,1775676672349,-185.081385,0.000157,2]
[420101758,1775676672359,-151.0,0.000157,2]
[420101759,1775676672369,-185.081385,0.000157,2]
[420101760,1775676672379,-320.89115,0.000157,2]
[420101761,1775676672389,-185.081379,0.000157,2]
[420101762,1775676672398,-320.89115,0.000157,2]
[420101763,1775676672408,-151.0,0.000157,2]
[420101764,1775676672418,-320.89115088,0.000157,2]
[420101765,1775676672427,-374.008372,0.000157,2]
[420101766,1775676672438,-374.008372,0.000157,2]
[420101767,1775676672448,-684.739571,0.000157,2]
[420101768,1775676672458,-201.410641,0.000157,2]
[420101769,1775676672467,-374.008372,0.000157,2]
[420101770,1775676672478,-684.739571,0.000157,2]
[420101771,1775676672487,-201.410641,0.000157,2]
[420101772,1775676672497,-374.008377,0.000157,2]
[420101773,1775676672507,-684.739571,0.000157,2]
[420101774,1775676672517,-201.410641,0.000157,2]
[420101775,1775676672527,-153.753597,0.000157,2]
[420101776,1775676672536,-684.739576,0.000157,2]
[420101777,1775676672545,-201.410634,0.000157,2]
[420101778,1775676672555,-153.753597,0.000157,2]
[420101779,1775676672564,-151.0,0.000157,2]
[420101780,1775676672575,-153.753597,0.000157,2]
[420101781,1775676672584,-153.753601,0.000157,2]
[420101782,1775676672593,-155.998488,0.000157,2]
[420101783,1775676672603,-155.998488,0.000157,2]
[420101784,1775676672613,-155.998488,0.000157,2]
[420101785,1775676672622,-155.998479,0.000157,2]
[420101786,1775676672632,-698.620311,0.000157,2]
[420101787,1775676672643,-745.674365,0.000157,2]
[420101788,1775676672653,-698.620311,0.000157,2]
[420101789,1775676672664,-745.674365,0.000157,2]
[420101790,1775676672673,-698.620311,0.000157,2]
[420101791,1775676672684,-745.674365,0.000157,2]
[420101792,1775676672693,-698.620318,0.000157,2]
[420101793,1775676672703,-745.674361,0.000157,2]
[420101794,1775676672713,-151.0,0.000157,2]
[420101795,1775676672723,-759.409535,0.000157,2]
[420101796,1775676672732,-759.409535,0.000157,2]
[420101797,1775676672742,-151.0,0.000157,2]
[420101798,1775676672751,-213.120018,0.000157,2]
[420101799,1775676672761,-151.0,0.000157,2]
[420101800,1775676672770,-533.119579,0.000157,2]
[420101801,1775676672780,-216.387975,0.000157,2]
[420101802,1775676672790,-213.120018,0.000157,2]
[420101803,1775676672800,-260.026896,0.000157,2]
[420101804,1775676672810,-759.409535,0.000157,2]
[420101805,1775676672820,-533.119579,0.000157,2]
[420101806,1775676672830,-216.387975,0.000157,2]
[420101807,1775676672840,-256.376188,0.000157,2]
[420101808,1775676672850,-151.0,0.000157,2]
[420101809,1775676672859,-213.120018,0.000157,2]
[420101810,1775676672868,-759.409526,0.000157,2]
[420101811,1775676672878,-533.119579,0.000157,2]
[420101812,1775676672887,-216.387975,0.000157,2]
[420101813,1775676672897,-151.0,0.000157,2]
[420101814,1775676672906,-256.376188,0.000157,2]
[420101815,1775676672916,-213.120018,0.000157,2]
[420101816,1775676672927,-151.0,0.000157,2]
[420101817,1775676672937,-533.11958158,0.000157,2]
[420101818,1775676672948,-216.387979,0.000157,2]
[420101819,1775676672958,-256.376188,0.000157,2]
[420101820,1775676672968,-151.0,0.000157,2]
[420101821,1775676672978,-256.376189,0.000157,2]
[420101822,1775676672987,-151.0,0.000157,2]
[420101823,1775676672997,-151.0,0.000157,2]
[420101824,1775676673008,-208.927805,0.000157,2]
[420101825,1775676673018,-151.0,0.000157,2]
[420101826,1775676673029,-151.0,0.000157,2]
[420101827,1775676673039,-151.0,0.000157,2]
[420101828,1775676673050,-151.0,0.000157,2]
[420101829,1775676673060,-245.217068,0.000157,2]
[420101830,1775676673070,-245.217068,0.000157,2]
[420101831,1775676673080,-186.862495,0.000157,2]
[420101832,1775676673090,-245.217068,0.000157,2]
[420101833,1775676673100,-245.217074,0.000157,2]
[420101834,1775676673110,-151.0,0.000157,2]
[420101835,1775676673120,-481.943384,0.000157,2]
[420101836,1775676673131,-481.943384,0.000157,2]
[420101837,1775676673142,-481.943384,0.000157,2]
[420101838,1775676673153,-151.0,0.000157,2]
[420101839,1775676673164,-151.0,0.000157,2]
[420101840,1775676673175,-525.417452,0.000157,2]
[420101841,1775676673186,-481.943386,0.000157,2]
[420101842,1775676673197,-151.0,0.000157,2]
[420101843,1775676673207,-525.417452,0.000157,2]
[420101844,1775676673218,-151.0,0.000157,2]
[420101845,1775676673228,-10500.0,0.000157,5]
[420101846,1775676673239,-466.087884,0.000157,2]
[420101847,1775676673250,-306.368959,0.000157,2]
[420101848,1775676673260,-525.417452,0.000157,2]
[420101849,1775676673271,-306.368959,0.000157,2]
[420101850,1775676673282,-636.376379,0.000157,2]
[420101851,1775676673294,-525.417454,0.000157,2]
[420101852,1775676673305,-636.376379,0.000157,2]
[420101853,1775676673316,-306.368959,0.000157,2]
[420101854,1775676673326,-466.087884,0.000157,2]
[420101855,1775676673337,-636.376379,0.000157,2]
[420101856,1775676673349,-306.368967,0.000157,2]
[420101857,1775676673360,-151.0,0.000157,2]
[420101858,1775676673371,-466.087884,0.000157,2]
[420101859,1775676673381,-636.376377,0.000157,2]
[420101860,1775676673391,-466.087884,0.000157,2]
[420101861,1775676673403,-820.296437,0.000157,2]
[420101862,1775676673413,-820.296437,0.000157,2]
[420101863,1775676673424,-820.296437,0.000157,2]
[420101864,1775676673434,-820.296444,0.000157,2]
[420101865,1775676673445,-3449.0,0.000157,2]
[420101866,1775676673455,-151.0,0.000157,2]
[420101867,1775676673466,-151.0,0.000157,2]
[420101868,1775676673477,-193.128925,0.000157,2]
[420101869,1775676673487,-497.933715,0.000157,2]
[420101870,1775676673498,-497.933715,0.000157,2]
[420101871,1775676673508,-252.458138,0.000157,2]
[420101872,1775676673519,-497.933715,0.000157,2]
[420101873,1775676673530,-252.458138,0.000157,2]
[420101874,1775676673541,-462.719602,0.000157,2]
[420101875,1775676673551,-497.933723,0.000157,2]
[420101876,1775676673562,-462.719602,0.000157,2]
[420101877,1775676673573,-252.458138,0.000157,2]
[420101878,1775676673584,-392.167974,0.000157,2]
[420101879,1775676673594,-252.458148,0.000157,2]
[420101880,1775676673604,-462.719602,0.000157,2]
[420101881,1775676673614,-392.167974,0.000157,2]
[420101882,1775676673624,-4521.204252,0.000157,2]
[420101883,1775676673634,-280.569445,0.000157,2]
[420101884,1775676673643,-462.7196,0.000157,2]
[420101885,1775676673653,-280.973665,0.000157,2]
[420101886,1775676673663,-392.167974,0.000157,2]
[420101887,1775676673673,-810.871787,0.000157,2]
[420101888,1775676673684,-4521.204252,0.000157,2]
[420101889,1775676673694,-280.569445,0.000157,2]
[420101890,1775676673704,-810.871787,0.000157,2]
[420101891,1775676673714,-4521.204252,0.000157,2]
[420101892,1775676673724,-280.569445,0.000157,2]
[420101893,1775676673734,-810.871787,0.000157,2]
[420101894,1775676673744,-4521.20426,0.000157,2]
[420101895,1775676673754,-280.973665,0.000157,2]
[420101896,1775676673764,-392.167983,0.000157,2]
[420101897,1775676673773,-280.569454,0.000157,2]
[420101898,1775676673783,-810.871785,0.000157,2]
[420101899,1775676673793,-280.973665,0.000157,2]
[420101900,1775676673803,-1033.902763,0.000157,2]
[420101901,1775676673813,-663.858593,0.000157,2]
[420101902,1775676673825,-280.973665,0.000157,2]
[420101903,1775676673835,-1033.902763,0.000157,2]
[420101904,1775676673845,-663.858593,0.000157,2]
[420101905,1775676673855,-1033.902763,0.000157,2]
[420101906,1775676673865,-663.858593,0.000157,2]
[420101907,1775676673875,-323.326839,0.000157,2]
[420101908,1775676673885,-663.858588,0.000157,2]
[420101909,1775676673895,-1033.902767,0.000157,2]
[420101910,1775676673906,-151.0,0.000157,2]
[420101911,1775676673916,-323.326839,0.000157,2]
[420101912,1775676673927,-151.0,0.000157,2]
[420101913,1775676673937,-323.326839,0.000157,2]
[420101914,1775676673947,-151.0,0.000157,2]
[420101915,1775676673958,-323.326837,0.000157,2]
[420101916,1775676673968,-528.134364,0.000157,2]
[420101917,1775676673978,-528.134364,0.000157,2]
[420101918,1775676673988,-528.134364,0.000157,2]
[420101919,1775676673999,-274.51099,0.000157,2]
[420101920,1775676674009,-528.134374,0.000157,2]
[420101921,1775676674019,-274.51099,0.000157,2]
[420101922,1775676674029,-274.51099,0.000157,2]
[420101923,1775676674039,-274.510993,0.000157,2]
[420101924,1775676674050,-522.450118,0.000157,2]
[420101925,1775676674060,-522.450118,0.000157,2]
[420101926,1775676674071,-522.450118,0.000157,2]
[420101927,1775676674080,-522.450116,0.000157,2]
[420101928,1775676674091,-200.0,0.00015702,2]
[420101929,1775676674101,-151.0,0.00015707,2]
[420101930,1775676674111,-151.0,0.00015707,2]
[420101931,1775676674121,-666.0,0.00015709,2]
[420101932,1775676674131,-666.0,0.00015709,2]
[420101933,1775676674141,-684580.97283046,0.0001571,2]
[420101934,1775676674151,-2008524.3868284,0.0001571,2]
[420101935,1775676675253,-450.0,9.098e-05,2]
[420101936,1775676676161,-50.0,9.098e-05,2]
[420101937,1775676676171,-388.80221627,0.00014277,2]
[420101938,1775676676605,-560.23247737,9.098e-05,2]
[420101939,1775676676614,-336.46720663,0.00010388,2]
[420101940,1775676676624,-5125.54889015,0.000109,2]
[420101941,1775676676634,-637.0,0.00013425,2]
[420101942,1775676676644,-211.57,0.00013699,2]
[420101943,1775676676654,-151.0,0.00013699,2]
[420101944,1775676676663,-507.88018,0.00013699,2]
[420101945,1775676676674,-119.07796373,0.00014277,2]
[420101946,1775676676684,-151.0,0.00014277,2]
[420101947,1775676676693,-507.88018,0.00014277,2]
[420101948,1775676676703,-151.0,0.0001491,2]
[420101949,1775676676713,-507.88018,0.0001491,2]
[420101950,1775676676723,-151.0,0.000155,2]
[420101951,1775676676733,-507.88018,0.000155,2]
[420101952,1775676676742,-2000.0,0.000157,2]
[420101953,1775676676752,-204093.4478691,0.0001571,2]
[420101954,1775676676761,-151.0,0.0001571,2]
[420101955,1775676676770,-151.0,0.0001571,2]
[420101956,1775676676780,-151.0,0.0001571,2]
[420101957,1775676676789,-151.0,0.0001571,2]
[420101958,1775676676799,-180.895591,0.0001571,2]
[420101959,1775676676809,-151.0,0.0001571,2]
[420101960,1775676676819,-151.0,0.0001571,2]
[420101961,1775676676829,-151.0,0.0001571,2]
[420101962,1775676676839,-151.0,0.0001571,2]
[420101963,1775676676848,-151.0,0.0001571,2]
[420101964,1775676676857,-151.0,0.0001571,2]
[420101965,1775676676867,-234.680013,0.0001571,2]
[420101966,1775676676877,-151.0,0.0001571,2]
[420101967,1775676676887,-151.0,0.0001571,2]
[420101968,1775676676897,-177.37673,0.0001571,2]
[420101969,1775676676906,-151.0,0.0001571,2]
[420101970,1775676676915,-151.0,0.0001571,2]
[420101971,1775676676926,-151.0,0.0001571,2]
[420101972,1775676676936,-151.0,0.0001571,2]
[420101973,1775676676946,-151.0,0.0001571,2]
[420101974,1775676676955,-151.0,0.0001571,2]
[420101975,1775676676965,-160.42789,0.0001571,2]
[420101976,1775676676976,-151.0,0.0001571,2]
[420101977,1775676676986,-153.621156,0.0001571,2]
[420101978,1775676676996,-151.0,0.0001571,2]
[420101979,1775676677005,-200.34394,0.0001571,2]
[420101980,1775676677014,-151.0,0.0001571,2]
[420101981,1775676677024,-151.0,0.0001571,2]
[420101982,1775676677034,-151.0,0.0001571,2]
[420101983,1775676677043,-151.0,0.0001571,2]
[420101984,1775676677053,-151.0,0.0001571,2]
[420101985,1775676677063,-151.0,0.0001571,2]
[420101986,1775676677073,-232.700006,0.0001571,2]
[420101987,1775676677083,-151.0,0.0001571,2]
[420101988,1775676677092,-232.700006,0.0001571,2]
[420101989,1775676677102,-151.0,0.0001571,2]
[420101990,1775676677111,-151.0,0.0001571,2]
[420101991,1775676677122,-367.057,0.0001571,2]
[420101992,1775676677132,-151.0,0.0001571,2]
[420101993,1775676677141,-367.057,0.0001571,2]
[420101994,1775676677151,-232.700006,0.0001571,2]
[420101995,1775676677160,-151.0,0.0001571,2]
[420101996,1775676677169,-232.700006,0.0001571,2]
[420101997,1775676677180,-151.0,0.0001571,2]
[420101998,1775676677190,-151.466149,0.0001571,2]
[420101999,1775676677200,-367.057,0.0001571,2]
[420102000,1775676677209,-367.057,0.0001571,2]
[420102001,1775676677219,-232.700006,0.0001571,2]
[420102002,1775676677229,-151.0,0.0001571,2]
[420102003,1775676677239,-232.700006,0.0001571,2]
[420102004,1775676677249,-160.606027,0.0001571,2]
[420102005,1775676677259,-367.057,0.0001571,2]
[420102006,1775676677269,-367.057,0.0001571,2]
[420102007,1775676677280,-232.700006,0.0001571,2]
[420102008,1775676677289,-232.700016,0.0001571,2]
[420102009,1775676677300,-367.057,0.0001571,2]
[420102010,1775676677309,-367.056996,0.0001571,2]
[420102011,1775676677319,-256.490125,0.0001571,2]
[420102012,1775676677328,-256.490125,0.0001571,2]
[420102013,1775676677337,-256.490125,0.0001571,2]
[420102014,1775676677347,-256.490125,0.0001571,2]
[420102015,1775676677358,-151.0,0.0001571,2]
[420102016,1775676677368,-151.0,0.0001571,2]
[420102017,1775676677378,-151.0,0.0001571,2]
[420102018,1775676677389,-256.490125,0.0001571,2]
[420102019,1775676677399,-151.0,0.0001571,2]
[420102020,1775676677409,-256.490125,0.0001571,2]
[420102021,1775676677419,-151.0,0.0001571,2]
[420102022,1775676677429,-256.490125,0.0001571,2]
[420102023,1775676677439,-151.0,0.0001571,2]
[420102024,1775676677449,-256.490124,0.0001571,2]
[420102025,1775676677459,-151.0,0.0001571,2]
[420102026,1775676677469,-151.0,0.0001571,2]
[420102027,1775676677479,-201.470335,0.0001571,2]
[420102028,1775676677489,-223.731716,0.0001571,2]
[420102029,1775676677499,-606.860603,0.0001571,2]
[420102030,1775676677508,-606.860603,0.0001571,2]
[420102031,1775676677518,-151.0,0.0001571,2]
[420102032,1775676677527,-151.0,0.0001571,2]
[420102033,1775676677537,-151.0,0.0001571,2]
[420102034,1775676677547,-151.0,0.0001571,2]
[420102035,1775676677557,-151.0,0.0001571,2]
[420102036,1775676677992,-606.860603,0.0001571,2]
[420102037,1775676678031,-606.860603,0.0001571,2]
[420102038,1775676678042,-151.0,0.0001571,2]
[420102039,1775676678052,-151.0,0.0001571,2]
[420102040,1775676678062,-151.0,0.0001571,2]
[420102041,1775676678073,-606.860603,0.0001571,2]
[420102042,1775676678083,-151.0,0.0001571,2]
[420102043,1775676678093,-606.860603,0.0001571,2]
[420102044,1775676678103,-151.0,0.0001571,2]
[420102045,1775676678113,-151.0,0.0001571,2]
[420102046,1775676678123,-151.0,0.0001571,2]
[420102047,1775676678133,-606.860603,0.0001571,2]
[420102048,1775676678143,-606.860598,0.0001571,2]
[420102049,1775676678153,-238.427466,0.0001571,2]
[420102050,1775676678162,-406.856224,0.0001571,2]
[420102051,1775676678173,-238.427466,0.0001571,2]
[420102052,1775676678182,-178.732607,0.0001571,2]
[420102053,1775676678193,-406.856224,0.0001571,2]
[420102054,1775676678202,-178.732607,0.0001571,2]
[420102055,1775676678213,-151.0,0.0001571,2]
[420102056,1775676678223,-238.427466,0.0001571,2]
[420102057,1775676678234,-406.856224,0.0001571,2]
[420102058,1775676678244,-265.868191,0.0001571,2]
[420102059,1775676678254,-238.427466,0.0001571,2]
[420102060,1775676678263,-406.856224,0.0001571,2]
[420102061,1775676678274,-151.0,0.0001571,2]
[420102062,1775676678285,-238.427466,0.0001571,2]
[420102063,1775676678295,-406.856224,0.0001571,2]
[420102064,1775676678305,-238.427466,0.0001571,2]
[420102065,1775676678315,-406.856224,0.0001571,2]
[420102066,1775676678326,-238.427466,0.0001571,2]
[420102067,1775676678336,-406.856224,0.0001571,2]
[420102068,1775676678346,-178.732607,0.0001571,2]
[420102069,1775676678357,-238.42746,0.0001571,2]
[420102070,1775676678368,-406.856233,0.0001571,2]
[420102071,1775676678378,-178.732607,0.0001571,2]
[420102072,1775676678389,-178.732607,0.0001571,2]
[420102073,1775676678400,-178.732607,0.0001571,2]
[420102074,1775676678410,-178.732607,0.0001571,2]
[420102075,1775676678420,-151.0,0.0001571,2]
[420102076,1775676678430,-178.732603,0.0001571,2]
[420102077,1775676678441,-159.385177,0.0001571,2]
[420102078,1775676678451,-811.409452,0.0001571,2]
[420102079,1775676678460,-811.409452,0.0001571,2]
[420102080,1775676678470,-153.836915,0.0001571,2]
[420102081,1775676678480,-811.409452,0.0001571,2]
[420102082,1775676678492,-811.409452,0.0001571,2]
[420102083,1775676678502,-811.409452,0.0001571,2]
[420102084,1775676678513,-811.409452,0.0001571,2]
[420102085,1775676678523,-811.409452,0.0001571,2]
[420102086,1775676678533,-811.409447,0.0001571,2]
[420102087,1775676678543,-151.0,0.0001571,2]
[420102088,1775676678554,-151.0,0.0001571,2]
[420102089,1775676678564,-735.158061,0.0001571,2]
[420102090,1775676678574,-735.158061,0.0001571,2]
[420102091,1775676678585,-735.158061,0.0001571,2]
[420102092,1775676678596,-735.158061,0.0001571,2]
[420102093,1775676678607,-735.158061,0.0001571,2]
[420102094,1775676678617,-735.158061,0.0001571,2]
[420102095,1775676678628,-911.817401,0.0001571,2]
[420102096,1775676678638,-735.158061,0.0001571,2]
[420102097,1775676678649,-911.817401,0.0001571,2]
[420102098,1775676678658,-735.15807,0.0001571,2]
[420102099,1775676678668,-911.817401,0.0001571,2]
[420102100,1775676678679,-911.817401,0.0001571,2]
[420102101,1775676678690,-911.817401,0.0001571,2]
[420102102,1775676678700,-911.817401,0.0001571,2]
[420102103,1775676678710,-911.817401,0.0001571,2]
[420102104,1775676678720,-911.817398,0.0001571,2]
[420102105,1775676678730,-151.0,0.0001571,2]
[420102106,1775676678741,-151.0,0.0001571,2]
[420102107,1775676678750,-151.0,0.0001571,2]
[420102108,1775676678761,-151.0,0.0001571,2]
[420102109,1775676678771,-151.0,0.0001571,2]
[420102110,1775676678780,-353.938604,0.0001571,2]
[420102111,1775676678790,-151.0,0.0001571,2]
[420102112,1775676678800,-447.188631,0.0001571,2]
[420102113,1775676678809,-151.0,0.0001571,2]
[420102114,1775676678819,-151.0,0.0001571,2]
[420102115,1775676678829,-353.938604,0.0001571,2]
[420102116,1775676678839,-447.188631,0.0001571,2]
[420102117,1775676678849,-151.0,0.0001571,2]
[420102118,1775676678859,-151.0,0.0001571,2]
[420102119,1775676678870,-599.554744,0.0001571,2]
[420102120,1775676678880,-353.938604,0.0001571,2]
[420102121,1775676678891,-447.188631,0.0001571,2]
[420102122,1775676678901,-599.554744,0.0001571,2]
[420102123,1775676678911,-353.938609,0.0001571,2]
[420102124,1775676678921,-447.188634,0.0001571,2]
[420102125,1775676678931,-599.554744,0.0001571,2]
[420102126,1775676678941,-599.554754,0.0001571,2]
[420102127,1775676678951,-151.0,0.0001571,2]
[420102128,1775676678960,-151.0,0.0001571,2]
[420102129,1775676678971,-153.800621,0.0001571,2]
[420102130,1775676678981,-151.0,0.0001571,2]
[420102131,1775676678991,-151.0,0.0001571,2]
[420102132,1775676679000,-151.0,0.0001571,2]
[420102133,1775676679010,-151.0,0.0001571,2]
[420102134,1775676679019,-151.0,0.0001571,2]
[420102135,1775676679030,-151.0,0.0001571,2]
[420102136,1775676679040,-151.0,0.0001571,2]
[420102137,1775676679050,-151.0,0.0001571,2]
[420102138,1775676679061,-151.0,0.0001571,2]
[420102139,1775676679071,-497.50981,0.0001571,2]
[420102140,1775676679080,-497.50981,0.0001571,2]
[420102141,1775676679091,-497.50981,0.0001571,2]
[420102142,1775676679101,-813.297609,0.0001571,2]
[420102143,1775676679111,-628.899081,0.0001571,2]
[420102144,1775676679121,-813.297609,0.0001571,2]
[420102145,1775676679131,-628.899081,0.0001571,2]
[420102146,1775676679141,-813.297609,0.0001571,2]
[420102147,1775676679151,-628.899081,0.0001571,2]
[420102148,1775676679161,-151.0,0.0001571,2]
[420102149,1775676679172,-497.509814,0.0001571,2]